Cogmind - Beta 16.1 @@@ ROGUE MODE // 2026.03.15 @ 00:38:26 Player: Teucer Result: Destroyed by G-34 Mercenary with Small Laser Performance ------------- Evolutions (0) 0 Regions Visited (2) 400 Robots Destroyed (37) 185 Value Destroyed (741) 741 Prototype IDs (0) 0 Alien Tech Used (0) 0 Bonus (0) 0 TOTAL SCORE: 1326 Bonus ------- None Cogmind --------- Core Integrity 0/250 Matter 236/300 Energy 125/125 System Corruption 0% Temperature Cool (6) Movement Treading (160) Location -10/Mines Parts ------- > --- POWER (1) -------- Light Ion Engine > --- PROPULSION (2) --- Light Treads Light Treads > --- UTILITY (2) ------ Improved Heat Sink Medium Storage Unit > --- WEAPON (2) ------- Medium Laser > --- INVENTORY (10) --- Light Treads Light Treads Huge Storage Unit Improved Terrain Scanner Seismic Detector Seismic Detector Light Armor Plating Mining Laser Peak State ------------ > --- POWER ------------ Light Nuclear Core > --- PROPULSION ------- Light Treads Light Treads > --- UTILITY ---------- Improved Heat Sink Medium Storage Unit > --- WEAPON ----------- Assault Rifle Assault Rifle > --- INVENTORY -------- Light Ion Engine Light Treads Light Treads Huge Storage Unit Improved Terrain Scanner Seismic Detector Seismic Detector Light Armor Plating Medium Laser Mining Laser [Rating: 12] Favorites ----------- Power Ion Engine Engine Ion Engine Power Core Light Nuclear Core Propulsion Light Treads Treads Light Treads Wheel Compact Wheel Utility Medium Storage Unit Device Improved Terrain Scanner Storage Medium Storage Unit Processor Visual Processing Unit Protection Propulsion Shielding Weapon Assault Rifle Energy Gun Medium Laser Ballistic Gun Assault Rifle Build | -11 -10 -10 ------- Run | Yrd Mat Min Slots Evolved . | . . . Power . | . . . Propulsion . | . . . Utility . | . . . Weapon . | . . . Parts Attached 24 | 8 14 2 Power 4 | 1 2 1 Engine 3 | 1 1 1 Core 1 | . 1 . Reactor . | . . . Propulsion 6 | 2 4 . Treads 4 | 2 2 . Leg . | . . . Wheel 2 | . 2 . Hover . | . . . Flight . | . . . Utility 9 | 2 6 1 Device 4 | 1 2 1 Storage 3 | 1 2 . Processor 1 | . 1 . Hackware . | . . . Protection 1 | . 1 . Artifact . | . . . Weapon 5 | 3 2 . Energy Gun 1 | 1 . . Energy Cannon . | . . . Ballistic Gun 4 | 2 2 . Ballistic Cannon . | . . . Launcher . | . . . Special Weapon . | . . . Impact Weapon . | . . . Slashing Weapon . | . . . Piercing Weapon . | . . . Special Melee Weapon . | . . . Unidentified Prototypes . | . . . Parts Lost 7 | . 4 3 Power 2 | . 1 1 Propulsion 1 | . 1 . Utility 1 | . 1 . Weapon 3 | . 1 2 Highest Loss Streak 2 | . 2 2 To Critical Strikes . | . . . Average Backups 7 | 3 8 9 Power 1 | 1 1 . Propulsion 1 | 1 1 2 Utility 2 | . 2 5 Weapon 1 | . 1 1 Tool/Special . | . . . Unused Backups 9 | 1 4 4 Power 2 | 1 1 . Propulsion 3 | . 1 2 Utility 2 | . 1 1 Weapon 1 | . . 1 Tool/Special 1 | . 1 . Average Slot Usage (%) 98 | . 98 99 Engine 8 | . 9 4 Core 5 | . 4 8 Treads 25 | . 24 28 Wheel 2 | . 3 . Device 9 | . 8 14 Storage 14 | . 14 14 Processor 1 | . 1 . Protection 2 | . 2 . Ballistic Gun 27 | . 28 27 Peak Build Rating 12 | 9 11 12 Average Rating 8 | 5 9 9 On Entrance 6 | . 9 10 Avg Prop Armor Cover (%) 12 | . 12 . Naked Turns . | . . . Heaviest Build 20 | 15 20 20 Greatest Support 40 | 40 40 40 Greatest Overweight (x) 1 | 1 1 . Average Overweight (x) . | . . . Largest Inventory Capacity 25 | 8 25 10 Average Capacity 9 | 7 9 10 Most Carried 11 | 5 11 10 Average Carried 7 | 3 8 9 Final Capacity 10 | 8 10 10 Final Carried 10 | 5 10 8 Class Distribution -------------------- 100% | Mutant Dominant Class ---------------- Mutant | -10/Materials Mutant | -10/Mines Resources | -11 -10 -10 ----------- Run | Yrd Mat Min Matter Collected 1028 | 370 570 88 Remotely . | . . . Salvage Created 1164 | 230 849 85 Parts 89 | 13 73 3 Haulers Intercepted 1 | . 1 . Recyclers Shooed . | . . . Parts Field Recycled . | . . . Retrieved Matter . | . . . Parts Self-Destructed . | . . . Prevented . | . . . Parts Restored . | . . . Kills | -11 -10 -10 ------- Run | Yrd Mat Min Combat Hostiles Destroyed 25 | . 23 2 Guns 25 | . 23 2 Classes Destroyed 8 | 3 5 . Worker 2 | 1 1 . Tunneler 6 | 5 1 . Hauler 1 | . 1 . Recycler 1 | 1 . . Mechanic 1 | . 1 . Watcher 1 | . 1 . Swarmer 9 | . 9 . Grunt 16 | . 14 2 Best Kill Streak 5 | 3 5 2 Combat Bots Only 5 | . 5 2 Max Kills in Single Turn 2 | 1 2 1 Gunslinging . | . . . Exploded . | . . . Melee . | . . . Uniques/NPCs Destroyed . | . . . Combat | -11 -10 -10 -------- Run | Yrd Mat Min Hostile Shots Fired 137 | . 102 35 Missed 32 | . 28 4 Hits 105 | . 74 31 Projectile 105 | . 74 31 Damage Taken 1249 | . 811 438 Core 258 | . 155 103 Absorbed by Shields . | . . . Redirected to Shielding 50 | . 50 . Core Remaining (%) 100 | 100 . . Volleys Fired 108 | 15 72 21 Largest 2 | 2 2 2 Hottest 70 | 40 40 70 Shots Fired 214 | 30 143 41 Gun 214 | 30 143 41 Cannon . | . . . Launcher . | . . . Special . | . . . Kinetic 210 | 30 143 37 Thermal 4 | . . 4 Explosive . | . . . Electromagnetic . | . . . Robot Hit Streak 12 | 10 10 12 Robot Miss Streak 4 | 1 4 3 Penetration Max . | . . . Secondary Targets 4 | . 4 . Max Gunslinging Chain 1 | . 1 . Shots Hit Robots 151 | 21 99 31 Core Hits 54 | 8 39 7 Critical Kills . | . . . Critical Parts Destroyed . | . . . Critical Strikes 1 | . . 1 Burn 1 | . . 1 Melee Attacks . | . . . Impact . | . . . Slashing . | . . . Piercing . | . . . Sneak Attacks . | . . . Combat Hostiles . | . . . Follow-up Attacks . | . . . Damage Inflicted 1982 | 254 1330 398 Guns 1968 | 254 1321 393 Cannons . | . . . Explosions . | . . . Melee . | . . . Ramming 14 | . 9 5 Kinetic 1932 | 254 1321 357 Thermal 36 | . . 36 Explosive . | . . . Electromagnetic . | . . . Impact . | . . . Slashing . | . . . Piercing . | . . . Highest Corruption . | . . . Average Corruption . | . . . Corruption Purged . | . . . Corruption Blocked . | . . . Overload Shots . | . . . Overflow Damage . | . . . Projectiles . | . . . Explosions . | . . . Melee . | . . . Knockbacks . | . . . Impact . | . . . Kinetic . | . . . Secondary . | . . . Self-Inflicted Damage . | . . . Shots . | . . . Rammed 6 | . 4 2 Targets Rammed 6 | . 4 2 Kicked . | . . . Crushed . | . . . Highest Temperature 10 | . 10 4 Average Temperature 3 | . 3 4 Received Heat Transfer 606 | . 360 246 Siege Activations . | . . . Martial Activations . | . . . Shielding Activations . | . . . Robots Disrupted . | . . . Combat Hostiles . | . . . Robots Corrupted . | . . . Combat Hostiles . | . . . Parts Fried . | . . . Impact Corruptions . | . . . Robots Melted . | . . . Combat Hostiles . | . . . Parts Melted . | . . . Heat Transferred 185 | . . 185 Parts Sabotaged . | . . . Parts Stolen . | . . . Parts Stripped . | . . . Power Chain Reactions . | . . . Alert | -11 -10 -10 ------- Run | Yrd Mat Min Maximum Alert Level 1 | . 1 . Low Security (%) 74 | 100 64 100 Level 1 25 | . 35 . Level 2 . | . . . Level 3 . | . . . Level 4 . | . . . Level 5 . | . . . High Security . | . . . Max Security . | . . . Peak Influence 356 | 10 356 128 Initial 128 | . . 128 Average 116 | 1 146 82 Influence Increases 853 | 35 768 50 Destroy 0b10 Robot/C 500 | . 460 40 Destroy 0b10 Robot/NC 60 | 35 25 . Destroy Leader 114 | . 104 10 Successful Hack 26 | . 26 . Select Force Hacks 60 | . 60 . Destroy Structure 3 | . 3 . Lose Combat Pursuer 90 | . 90 . Influence Decreases 825 | 35 438 352 Entered New Map 202 | . . 202 Time Decay 553 | 35 398 120 Lost Part 70 | . 40 30 Squads Dispatched 7 | . 7 . Investigation 5 | . 5 . Extermination . | . . . Reinforcement 2 | . 2 . Assault . | . . . Garrison . | . . . Intercept . | . . . Searches Triggered . | . . . Construction Impeded . | . . . Haulers Reinforced . | . . . Active Scanning Responses . | . . . Cargo Convoy Interrupts . | . . . Stealth | -11 -10 -10 --------- Run | Yrd Mat Min Distress Signals 3 | . 2 1 Communications Jammed . | . . . Distress Signals . | . . . Times Spotted 48 | . 44 4 Peak Tracking Total 6 | . 6 2 Tactical Retreats 4 | . 4 . Traps | -11 -10 -10 ------- Run | Yrd Mat Min Traps Triggered 3 | . 3 . Indirectly . | . . . Trap Hack Attempts . | . . . Triggered . | . . . Disarmed . | . . . Reprogrammed . | . . . Reused . | . . . Traps Extracted . | . . . Installed . | . . . Triggered . | . . . Machines | -11 -10 -10 ---------- Run | Yrd Mat Min Machines Disabled . | . . . Max in Single Turn . | . . . Machines Repaired . | . . . Machines Dismantled . | . . . Machines Sabotaged . | . . . Overloaded Fab Kills . | . . . Hacking | -11 -10 -10 --------- Run | Yrd Mat Min Machines Accessed 9 | . 9 . Terminals 7 | . 7 . Fabricators . | . . . Repair Stations . | . . . Recycling Units 2 | . 2 . Scanalyzers . | . . . Garrison Access . | . . . Total Hacks 26 | . 26 . Successful 17 | . 17 . Failed 9 | . 9 . Catastrophic 1 | . 1 . Database Lockouts . | . . . Manual 21 | . 21 . Terminals 23 | . 23 . Fabricators . | . . . Repair Stations . | . . . Recycling Units 3 | . 3 . Scanalyzers . | . . . Garrison Access . | . . . Terminal Hacks 7 | . 7 . Robot Analysis 2 | . 2 . Emergency Access Points 1 | . 1 . Locate Traps 3 | . 3 . Zone Layout 1 | . 1 . Fabricator Hacks . | . . . Repair Station Hacks . | . . . Recycling Unit Hacks 1 | . 1 . Report Inventory 1 | . 1 . Scanalyzer . | . . . Garrison Access Hacks . | . . . Unauthorized Hacks 9 | . 9 . Terminals 7 | . 7 . Botnet 2 | . 2 . Skim 5 | . 5 . Fabricators . | . . . Repair Stations . | . . . Recycling Units 2 | . 2 . Tunnel 2 | . 2 . Scanalyzers . | . . . Garrison Access . | . . . Data Cores Recovered . | . . . Used . | . . . Hacking Detections 7 | . 7 . Full Trace Events . | . . . Feedback Events . | . . . Feedback Blocked . | . . . Robot Schematics Acquired . | . . . Robots Built . | . . . Authchips . | . . . Time . | . . . Total Robot Build Rating . | . . . Part Schematics Acquired . | . . . Parts Built . | . . . Authchips . | . . . Time . | . . . Total Part Build Rating . | . . . Part Studies Acquired . | . . . Parts Repaired . | . . . Time . | . . . Parts Recycled . | . . . Recycled Matter . | . . . Retrieved Matter . | . . . Retrieved Components . | . . . Parts Scanalyzed . | . . . Part Schematics Acquired . | . . . Parts Damaged . | . . . Bothacking | -11 -10 -10 ------------ Run | Yrd Mat Min Used RIF Installer . | . . . Robots Hacked . | . . . Non-combat . | . . . Combat . | . . . Robot Hacks Applied . | . . . Relay Couplers Released . | . . . Fabnet Peak Effective % . | . . . Robots Rewired . | . . . Allies Hacked . | . . . Hacks Repelled . | . . . Allies | -11 -10 -10 -------- Run | Yrd Mat Min Total Allies . | . . . Largest Group . | . . . Highest-Rated Group . | . . . Highest-Rated Ally . | . . . Total Orders . | . . . Ally Attacks . | . . . Total Damage . | . . . Kills . | . . . Allies Corrupted . | . . . Allies Melted . | . . . Intel | -11 -10 -10 ------- Run | Yrd Mat Min Active Infowar (turns) 1117 | 24 924 169 Optics 143 | . 143 . Terrain 663 | 24 636 3 Seismic 311 | . 145 166 Robot Analysis Total 2 | . 2 . Derelict Logs Recovered 2 | . . 2 Drone Launches . | . . . Drone Recoveries . | . . . Exploration | -11 -10 -10 ------------- Run | Yrd Mat Min Turns Passed 1793 | 264 1280 249 Spaces Moved 870 | 127 635 108 Core 3 | 3 . . Treads 743 | 124 511 108 Legs . | . . . Wheels 124 | . 124 . Hover . | . . . Flight . | . . . Fastest Speed 50 | 50 100 160 Average Speed 152 | 158 149 160 Slowest Speed 160 | 160 160 160 Overloaded Moves . | . . . Propulsion Burnouts . | . . . Robots Hopped . | . . . Potential Cave-ins . | . . . Cave-ins Triggered . | . . . Exploration Rate (%) 41 | 4 88 33 Regions Visited 2 Branch Regions 1 Pre-discovered Areas 3 | . 2 1 Known Exits Taken 1 | . 1 . Unknown Exits Taken 1 | 1 . . Scrap Searched . | . . . Spaces Dug . | . . . Terrain Destroyed . | . . . Melee . | . . . Projectile . | . . . AOE . | . . . Terrain Rammed . | . . . Walls Destroyed . | . . . Machines Disabled . | . . . Actions | -11 -10 -10 --------- Run | Yrd Mat Min Total 1117 | 157 820 140 Wait 68 | . 65 3 Move 868 | 126 634 108 Hop . | . . . Pick Up 21 | 7 14 . Fast Attach 10 | 6 4 . Attach 5 | 1 2 2 Detach . | . . . Swap 16 | 1 11 4 Drop 15 | 1 14 . Fire 108 | 15 72 21 Melee . | . . . Ram . | . . . Kick . | . . . Crush 6 | . 4 2 Escape Stasis . | . . . Rewire . | . . . Trap . | . . . Miscellaneous . | . . . Route ------- -11/Scrapyard -10/Materials (discovered 5 exits: *Mat x3 / *Min / Sub) -10/Mines (discovered 2 exits: *Mat / Sub) History --------- Turn | Location | Event 19 | -11/Scrapyard | Discovered new exit (range 16) 265 | -11/Scrapyard | Entered Materials 302 | -10/Materials | Build established: Mutant 623 | -10/Materials | Discovered new exit (range 12) 788 | -10/Materials | Discovered new exit (range 11) 1069 | -10/Materials | Discovered new exit (range 13) 1096 | -10/Materials | Core integrity fell below 50% 1160 | -10/Materials | Learned Materials stockpile data 1224 | -10/Materials | Learned Storage garrison access intel 1280 | -10/Materials | Identified exit to Materials 1280 | -10/Materials | Identified exit to Mines 1280 | -10/Materials | Identified exit to Subcaves 1326 | -10/Materials | Learned Storage security intel 1361 | -10/Materials | Learned Recycling recycling unit intel 1385 | -10/Materials | Learned Storage trap positions 1420 | -10/Materials | Learned Storage emergency access door positions 1464 | -10/Materials | Learned Storage stockpile data 1520 | -10/Materials | Learned Materials stockpile data 1545 | -10/Materials | Entered Mines 1657 | -10/Mines | Learned location of Mines (-8) 1694 | -10/Mines | Core integrity fell below 20% 1728 | -10/Mines | Discovered exit to Materials (range 4) 1794 | -10/Mines | Destroyed by G-34 Mercenary with Small Laser Last Messages --------------- 01668_ Slammed into K-01 Serf. 01669_ K-01 Serf sends out distress signal. 01670_ Acquired derelict log, extracted data. Loading 1 Mines exit... 01695_ Destroyed Imp. Heat Sink. 01699_ Lgt. Nuclear Core destroyed. 01702_ G-47 Trooper destroyed. 01707_ K-01 Serf collects debris. 01720_ G-34 Mercenary destroyed. 01723_ Acquired 3 matter. 01726_ Acquired 34 matter. 01728_ Acquired 51 matter. 01728_ EXIT=FOUND: MATERIALS 01733_ R-06 Scavenger collects Aluminum Leg. 01738_ R-06 Scavenger collects Heat Sink. 01742_ R-06 Scavenger collects Aluminum Leg. 01774_ Slammed into U-05 Engineer. 01781_ Assault Rifle destroyed. 01786_ G-47 Trooper suffers critical hit (Burn). 01792_ Assault Rifle destroyed. Map ----- +----------------------------------------------------+ | ?????????????????????# #????????## | | ?????????????????????# #????##### | | ?????????????????????# #????# ### | | ?????????????????????# < #????# #### ##?? | | ?????????????????????# #????# #??## ##??? | | ?????????????????????##### ####### #???####???? | | ??????????????????####???# ! #??????????? | | ?????????????????## #??# #########??????????? | | ????????????????## ### #?????????????????## | | ????????????????# ## #?????????????????# | | ????????????????# # #?????????????????# | | ????????????????# ###???????????????# | | ????????????#????# ##??????#???????# | | ?????????????????## ##?????????????# | | ????????? ???????## #?????????????# | | ???????? ??????#### # #?????????????# | | ???????? #????????# ## #?????????????# | | ???????# #####???# #?# ##?????????????# | | ????????# #??# #??###??????????????# | | ???????????# ### #???????????????????## | | ????????????# #????????????????????? | | ?????????????# #????????????????????? | | ?????????????## ####????????????????????? | | ??????????????### ##??????????????????????? | | ????????????????## #??????????????????????? | | ????????????????## @#??????????????????????? | | ??????????????### ##??????????????????????? | | ??????????????# gg##???????????????????????? | | ?????????????# #????????????????????????? | | ?????????????## ????????????????????????? | | ??????????????##### ????????????????????????? | | ??????????????????## ???????????????????????? | | ???????????????????## ???????????????????????? | | ????????????????????? ??????????????????????? | | ????????????????????? ??????????????????????? | | ????????????????????? ?????????????????????? | | ????????????????????? ?????????????????????? | | ????????????????????? ????????????????????? | | ????????????????????? ????????????????????? | | ?????????????????????? ???????????????????? | | ?????????????????????? ???????????????????? | | ?????????????????????? ?????????????????????? | | ??????????????????????#???????????????????????? | | ??????????????????????????????????????????????? | | ??????????????????????????????????????????????? | | ??????????????????????????????????????????????? | | ??????????????????????????????????????????????? | | ??????????????????????????????????????????????? | | ??????????????????????????????????????????????? | | ??????????????????????????????????????????????? | +----------------------------------------------------+ Best States ------------- Heat Dissipation 39 Energy Generation 14 Energy Capacity 250 Matter Stores 300 Matter Capacity 300 Sight Range 18 Terrain Scan Range 16 Terrain Scan Density 10 Propulsion Shielding 33 Evasion (%) 40 Recoil Reduction 2 Item Schematics ----------------- None Robot Schematics ------------------ None Fabricated ------------ Nothing Repaired ---------- Nothing Studied --------- None Alien Tech Used ----------------- None Achievements -------------- None Challenges ------------ None Game ------ Seed ResetAccelerationStorage Manual? 0 Play Time 00:25:07 Cumulative 45.9 hours Start 2026.03.15 @ 00:14:33 End 2026.03.15 @ 00:38:26 Sessions 1 Manual Loads 0 Difficulty Rogue Special Mode None Game No. 33 Rogue 33 Adventurer 0 Explorer 0 Win Type - Total 0 Types 0/0/0/0/0/0/0/0/0/0 Lore% 26 Gallery% 32 Achievement% 19 Wizard Run 0 Options --------- Layout 1 ASCII 0 Keyboard 1 Movement Numpad Keybinds 0 Fullscreen 1 Font 24/Smallcaps Map View 50x35 Zoom Use 0% Tactical HUD 1 Map Filters NONE Filters NONE Steam 1 RUN: 91b55016-f83c-47f6-9516-e57db94fb3b9